bitfinex/quotes_ETHUSD_20240630
["timestamp","ask_amount","ask_price","bid_price","bid_amount"]
[1719735064912,4.4893,3396.3,3395.7,0.02619266]
[1719735065225,1.41295815,3396.2,3395.5,2.3585]
[1719735065434,1.41300841,3396.1,3395.5,2.3585]
[1719735065614,4.4893,3396.3,3395.6,0.02619266]
[1719735065615,1.41300841,3396.0,3395.6,0.02619266]
[1719735065787,2.18,3396.3,3395.6,0.02619266]
[1719735065991,2.18,3396.3,3395.7,0.02624359]
[1719735065992,1.41302391,3396.2,3395.7,0.02624359]
[1719735066338,2.18,3396.3,3395.8,2.4568]
[1719735066635,2.18,3396.3,3395.9,0.02624359]
[1719735067130,1.41277887,3396.2,3396.0,0.02624359]
[1719735067648,1.41277887,3396.2,3395.8,2.4568]
[1719735067940,2.18,3396.3,3396.1,0.02623981]
[1719735068104,1.41291664,3396.2,3395.8,2.4568]
[1719735069030,1.41291664,3396.2,3395.2,2.4568]
[1719735069384,4.41291664,3396.2,3395.2,2.4568]
[1719735069588,1.41291664,3396.1,3395.2,2.4568]
[1719735069834,4.41291664,3396.1,3395.2,2.4568]
[1719735070021,1.41291664,3396.0,3395.2,2.4568]
[1719735070403,1.41291664,3395.9,3395.2,2.4568]
[1719735070587,1.41291664,3395.8,3395.2,2.4568]
[1719735070789,3.0,3396.2,3395.2,2.4568]
[1719735071041,1.4126856,3396.1,3395.2,2.4568]
[1719735071895,1.4126856,3396.1,3395.2,2.4268]
[1719735074334,3.30600038,3396.2,3395.3,0.02638876]
[1719735074501,1.41304254,3396.1,3395.3,0.02638876]
[1719735074902,1.41304254,3396.1,3395.4,2.4568]
[1719735075295,1.41304254,3396.1,3395.5,0.02639631]
[1719735077861,3.30600038,3396.2,3395.5,0.02639631]
[1719735078154,0.30600038,3396.2,3395.5,0.02639631]
[1719735078449,1.71907635,3396.2,3395.5,0.02639631]
[1719735078771,4.71907635,3396.2,3395.4,2.4568]
[1719735078979,1.41307597,3396.1,3395.4,2.4568]
[1719735079149,4.41307597,3396.1,3395.4,2.4568]
[1719735079359,4.41307597,3396.1,3395.5,0.0264246]
[1719735079360,1.41307597,3396.0,3395.5,0.0264246]
[1719735079546,1.41307597,3396.0,3394.8,2.4568]
[1719735079547,2.042,3395.6,3394.8,2.4568]
[1719735079753,1.41307597,3395.5,3394.8,2.4568]
[1719735080665,1.41257623,3395.4,3394.8,2.4568]
[1719735080850,3.0,3396.0,3394.8,2.4568]
[1719735080851,1.41257623,3395.3,3394.8,2.4568]
[1719735081065,3.0,3396.0,3394.8,2.4568]
[1719735081066,3.59254651,3395.2,3394.8,2.4568]
[1719735081351,2.18,3395.2,3394.9,0.24568]
[1719735081740,2.18,3395.2,3394.3,2.45051077]
[1719735081941,2.18,3395.2,3394.5,2.3916]
[1719735082157,2.18,3395.2,3394.7,2.3916]
[1719735083061,2.18,3395.2,3394.6,0.55]
[1719735083062,2.18,3395.2,3394.9,2.3916]
[1719735084641,2.18,3395.2,3395.0,0.55]
[1719735084874,2.18,3395.2,3395.1,2.3916]
[1719735088584,3.59263189,3395.2,3395.1,2.3916]
[1719735088877,3.59263189,3395.2,3394.3,2.2585]
[1719735089079,1.41263189,3395.1,3394.5,2.2585]
[1719735089240,1.41263189,3395.1,3394.6,0.83085]
[1719735089584,1.41263189,3395.1,3394.7,2.2585]
[1719735090001,1.41261562,3395.0,3394.7,2.2585]
[1719735090165,1.41261562,3394.9,3394.7,2.2585]
[1719735090342,2.328,3395.2,3394.7,2.2585]
[1719735090541,1.41261691,3395.1,3394.7,2.2585]
[1719735091377,1.41261691,3395.1,3394.7,2.1585]
[1719735092980,2.328,3395.2,3394.7,2.1585]
[1719735093188,1.41255349,3395.1,3394.7,2.1585]
[1719735093397,1.41256124,3395.0,3394.7,2.1585]
[1719735093564,2.328,3395.2,3394.7,2.1585]
[1719735093565,1.41256124,3394.9,3394.7,2.1585]
[1719735093769,1.41256124,3394.8,3394.7,2.1585]
[1719735094454,1.41256124,3395.1,3394.7,2.1585]
[1719735094698,2.328,3395.2,3394.7,2.1585]
[1719735094699,1.41256124,3395.0,3394.7,2.1585]
[1719735094908,1.41256124,3394.9,3394.7,2.1585]
[1719735095199,1.41256124,3394.8,3394.7,2.1585]
[1719735095782,2.328,3395.2,3394.7,2.1585]
[1719735095783,1.41256124,3395.1,3394.7,2.1585]
[1719735096105,1.41256124,3395.0,3394.7,2.1585]
[1719735096299,1.41236821,3394.9,3394.7,2.1585]
[1719735096505,2.328,3395.2,3394.7,2.1585]
[1719735096506,1.41236821,3394.8,3394.7,2.1585]
[1719735096874,1.41236821,3395.1,3394.7,2.1585]
[1719735097080,1.41236821,3395.0,3394.7,2.1585]
[1719735097289,1.41236821,3394.9,3394.7,2.1585]
[1719735097534,1.41236821,3394.8,3394.7,2.1585]
[1719735097866,1.4125346,3395.1,3394.7,2.1585]
[1719735098065,1.4125346,3395.0,3394.7,2.1585]
[1719735098265,1.4125346,3394.9,3394.7,2.1585]
[1719735098465,1.4125346,3394.8,3394.7,2.1585]
[1719735099076,1.4125346,3395.1,3394.7,2.1585]
[1719735099277,2.328,3395.2,3394.7,2.1585]
[1719735099483,1.41271827,3395.1,3394.7,2.1585]
[1719735099872,1.41271827,3395.1,3394.4,2.2585]
[1719735102595,1.41262853,3395.0,3394.4,2.2585]
[1719735102793,1.41262853,3394.9,3394.4,2.2585]
[1719735103002,1.41269144,3394.8,3394.4,2.2585]
[1719735103184,4.7187,3395.2,3394.4,2.2585]
[1719735103185,1.41269144,3394.7,3394.4,2.2585]
[1719735103379,1.41269144,3394.6,3394.4,2.2585]
[1719735103584,1.41269144,3394.5,3394.4,2.2585]
[1719735103810,1.41269144,3395.1,3394.4,2.2585]
[1719735104124,1.41269144,3395.0,3394.4,2.2852057]
[1719735104336,1.41269144,3394.9,3394.4,2.2852057]
[1719735104499,1.41269144,3394.8,3394.4,2.2852057]
[1719735104698,1.41269144,3394.7,3394.4,2.2852057]
[1719735104902,1.41269144,3394.6,3394.4,2.2852057]
[1719735105107,1.41269144,3394.5,3394.4,2.2852057]
[1719735105634,1.41260948,3394.5,3394.4,2.2852057]
[1719735105831,1.41260614,3394.5,3394.4,2.2852057]
[1719735105983,1.41260614,3395.0,3394.4,0.0267057]
[1719735106190,2.3497,3394.9,3394.4,0.0267057]
[1719735106521,1.41260614,3394.8,3393.8,0.29358126]
[1719735106684,1.41260614,3394.8,3393.7,2.3223]
[1719735107126,1.41260614,3394.7,3393.7,2.3223]
[1719735107325,1.41260614,3394.6,3393.9,2.3223]
[1719735107555,1.41260614,3394.5,3393.9,2.3223]
[1719735107735,0.30557861,3395.0,3393.9,2.3223]
[1719735107736,1.41260614,3394.4,3393.9,2.3223]
[1719735107903,1.41260614,3394.3,3394.0,0.23223]
[1719735108234,1.41260614,3394.2,3394.0,0.0259101]
[1719735108429,1.41260614,3394.1,3394.0,0.0259101]
[1719735108847,1.41260614,3394.6,3393.9,2.2482101]
[1719735109153,1.41260614,3394.5,3394.0,0.23223]
[1719735109354,1.41260614,3394.4,3393.9,2.2482101]
[1719735109520,1.41260614,3394.3,3393.9,2.2482101]
[1719735109724,1.41260614,3394.2,3393.9,2.2482101]
[1719735109925,1.41260614,3394.1,3393.9,2.2482101]
[1719735110223,1.41260614,3394.0,3393.9,2.2482101]
[1719735110411,1.41260614,3394.0,3393.9,2.47303111]
[1719735110604,1.41260614,3394.6,3393.9,2.47303111]
[1719735110833,1.41260614,3394.5,3393.9,2.2482101]
[1719735111058,1.41260614,3394.4,3393.9,2.2482101]
[1719735111218,1.41206914,3394.3,3393.9,2.2482101]
[1719735111411,1.41206914,3394.2,3393.9,2.2482101]
[1719735111610,1.41206914,3394.1,3393.9,2.2482101]
[1719735111806,7.33,3394.7,3393.9,2.2482101]
[1719735112008,1.41205265,3394.6,3393.9,2.47303111]
[1719735113017,1.41205265,3394.6,3393.4,2.3223]
[1719735115249,1.41194207,3394.5,3393.4,2.3223]
[1719735115460,2.18,3394.1,3393.4,2.3223]
[1719735115611,1.41194587,3394.0,3393.4,2.5877162]
[1719735117321,2.18,3394.1,3393.6,2.3223]
[1719735117545,2.18,3394.1,3393.8,2.3223]
[1719735117763,2.18,3394.1,3393.9,0.28723]
[1719735122158,1.72433371,3394.1,3394.0,2.8667]
[1719735122824,1.01843371,3394.1,3394.0,2.8667]
[1719735124034,0.62153371,3394.1,3394.0,2.8667]
[1719735124339,1.41092992,3394.6,3394.1,2.3167]
[1719735124582,1.41092992,3394.6,3394.3,2.3167]
[1719735124799,7.33,3394.7,3394.4,0.84256154]
[1719735124950,7.16383194,3394.7,3394.5,2.3167]
[1719735125161,7.16383194,3394.7,3394.4,0.84256154]
[1719735125162,2.34074338,3395.2,3394.6,0.55]
[1719735125364,2.34074338,3395.2,3394.7,2.3167]
[1719735125365,1.41098221,3395.1,3394.7,2.3167]
[1719735125676,2.34074338,3395.2,3394.9,2.3167]
[1719735126038,1.41105454,3395.1,3394.9,2.3167]
[1719735126776,2.34074338,3395.2,3394.9,2.3167]
[1719735126947,1.41061699,3395.1,3394.9,2.3167]
[1719735127348,2.34074338,3395.2,3394.9,2.3167]
[1719735127621,2.34074338,3395.2,3395.0,0.23167]
[1719735133552,1.40901816,3395.1,3395.0,0.23167]
[1719735135739,2.34074338,3395.2,3395.0,0.23167]
[1719735136346,0.42624238,3395.2,3395.1,2.4882]
[1719735138286,0.01523238,3395.2,3395.1,2.4882]
[1719735139260,6.44872194,3395.6,3395.1,2.4882]
[1719735140657,2.21713185,3396.0,3395.2,0.60890293]
[1719735140910,1.41044978,3395.9,3395.3,2.4882]
[1719735142598,2.21713185,3396.0,3395.3,2.4882]
[1719735142771,1.41090734,3395.9,3395.2,0.8287081]
[1719735142973,1.41092669,3395.8,3395.2,0.55]
[1719735143300,1.41092669,3395.8,3395.0,2.3956]
[1719735143857,1.41092669,3395.7,3395.0,2.3956]
[1719735144204,2.21713185,3396.0,3395.0,2.6650481]
[1719735144498,1.41096741,3395.9,3395.0,2.6650481]
[1719735144702,1.41096741,3395.9,3395.1,0.55]
[1719735145809,1.41102521,3395.8,3395.1,0.55]
[1719735146012,1.41102521,3395.7,3395.1,0.90139291]
[1719735146162,2.21713185,3396.0,3395.1,0.90139291]
[1719735146363,1.4110919,3395.9,3395.1,0.90139291]
[1719735147164,1.4110919,3395.9,3395.2,0.35958739]
[1719735147358,1.4110919,3395.8,3395.2,0.35958739]
[1719735147564,2.3922,3396.2,3395.1,0.55]
[1719735147874,1.41077424,3396.1,3395.1,0.55]
[1719735148464,1.41077424,3396.1,3395.1,0.60890246]
[1719735148793,1.41081924,3396.0,3395.1,0.60890246]
[1719735148996,1.41081924,3395.9,3395.2,0.33033834]
[1719735149304,1.41081924,3395.8,3395.2,0.33033834]
[1719735149476,2.3922,3396.2,3395.3,0.33348408]
[1719735149676,1.41096327,3396.1,3395.4,2.4781]
[1719735151961,1.4111271,3396.0,3395.4,2.4781]
[1719735152204,0.01523238,3396.3,3395.4,2.4781]
[1719735152205,1.4111271,3395.9,3395.4,2.4781]
[1719735152384,0.01523238,3396.3,3395.4,2.4781]
[1719735158305,1.42659739,3396.3,3395.4,2.4781]
[1719735158509,1.41136501,3396.2,3395.4,2.78091]
[1719735158708,1.41136501,3396.1,3395.4,2.78091]
[1719735158907,1.41136501,3396.0,3395.4,2.78091]
[1719735159121,1.41136501,3395.9,3395.4,2.78091]
[1719735159342,0.852,3396.2,3395.4,2.78091]
[1719735159991,2.311,3396.1,3395.4,0.30281]
[1719735160191,1.41136474,3396.0,3395.4,0.30281]
[1719735160798,0.852,3395.7,3395.1,2.4781]
[1719735161318,0.852,3395.5,3395.1,2.4781]
[1719735163356,1.4112937,3395.9,3395.1,2.4781]
[1719735163553,1.4112937,3395.8,3395.1,2.4781]
[1719735163852,1.4112937,3395.7,3395.1,2.4781]
[1719735164053,1.4112937,3395.6,3395.1,2.4781]
[1719735164215,1.4112937,3395.5,3395.1,2.4781]
[1719735164553,1.41109014,3395.4,3395.1,2.4781]
[1719735164755,1.41109014,3395.3,3395.1,2.4781]
[1719735164913,1.41109014,3395.2,3395.1,2.4781]
[1719735165314,1.71675279,3396.0,3395.1,2.4781]
[1719735165619,1.41109014,3395.9,3395.1,2.4781]
[1719735165925,1.41109014,3395.8,3395.1,2.4781]
[1719735166130,1.41109014,3395.7,3394.5,2.466]
[1719735166323,1.41109014,3395.6,3394.6,1.2146267]
[1719735166529,1.41109014,3395.6,3394.6,4.2146267]
[1719735166953,1.41109014,3395.6,3394.7,2.466]
[1719735167260,1.41109014,3395.6,3394.8,0.36806267]
[1719735167618,2.3887,3395.7,3394.8,0.36806267]
[1719735167827,1.41113116,3395.6,3394.8,0.36806267]
[1719735169796,1.41113116,3395.6,3394.9,2.466]
[1719735170099,1.41113116,3395.5,3394.9,2.466]
[1719735170249,1.41113116,3395.4,3394.9,2.466]
[1719735170440,1.41113116,3395.3,3394.9,2.83406267]
[1719735170641,1.41113116,3395.2,3394.9,2.83406267]
[1719735170954,1.41082835,3395.1,3394.9,2.83406267]
[1719735171147,4.74036265,3396.0,3395.0,0.28340627]
[1719735171463,1.41084033,3395.9,3395.0,0.28340627]
[1719735174005,4.74036265,3396.0,3395.0,0.28340627]
[1719735174006,1.41065382,3395.8,3395.0,0.28340627]
[1719735174161,1.41065382,3395.7,3395.0,0.28340627]
[1719735174498,1.41065467,3395.6,3395.1,0.27494063]
[1719735174649,4.74036265,3396.0,3394.9,2.466]
[1719735174650,1.41065467,3395.5,3394.9,2.466]
[1719735174858,1.41065467,3395.4,3394.9,2.466]
[1719735175169,1.41065467,3395.3,3394.9,2.466]
[1719735175508,1.41065467,3395.2,3395.0,0.2466]
[1719735175781,1.41065467,3395.1,3394.9,2.466]
[1719735175993,1.41065467,3395.0,3394.9,2.466]
[1719735176183,1.41065467,3395.9,3394.9,2.466]
[1719735176488,1.41065467,3395.9,3394.9,2.79750055]
[1719735177056,1.41050603,3395.8,3394.9,2.79750055]
[1719735177282,1.41050603,3395.7,3395.0,0.30965061]
[1719735177500,1.41050603,3395.6,3395.0,0.30965061]
[1719735177800,1.41050603,3395.5,3395.0,0.30965061]
[1719735177945,1.41050603,3395.4,3395.0,0.30965061]
[1719735178275,1.41050603,3395.3,3394.9,2.466]
[1719735178504,1.41050603,3395.2,3394.9,2.466]
[1719735178645,1.41050603,3395.1,3394.9,2.466]
[1719735178842,1.41050603,3395.0,3394.9,2.466]
[1719735179149,1.41050603,3395.9,3394.9,2.466]
[1719735179375,1.41050603,3395.8,3394.9,2.466]
[1719735179565,1.41050603,3395.7,3394.9,2.79750055]
[1719735179760,6.95899751,3396.0,3394.9,2.79750055]
[1719735179761,1.41050603,3395.6,3394.9,2.79750055]
[1719735179942,1.41050603,3395.5,3395.0,0.30965061]
[1719735180144,1.41052354,3395.4,3395.0,0.30965061]
[1719735180370,1.41052354,3395.3,3395.1,0.30746561]
[1719735180580,1.41052354,3395.2,3395.1,0.30746561]
[1719735180759,1.41052354,3395.9,3394.9,2.466]
[1719735180946,1.41052354,3395.8,3394.9,2.466]
[1719735181147,1.41052354,3395.7,3394.9,2.466]
[1719735181348,1.41052354,3395.6,3394.9,2.466]
[1719735181594,1.41052354,3395.5,3394.9,2.79750055]
[1719735181794,1.41052354,3395.4,3394.9,2.79750055]
[1719735181952,1.41052354,3395.3,3394.9,2.79750055]
[1719735182152,1.41052354,3395.2,3395.0,0.30965061]
[1719735182357,1.41052354,3395.1,3395.0,0.30965061]
[1719735182580,4.74036265,3396.0,3394.9,2.466]
[1719735182782,1.41001561,3395.9,3394.9,2.466]
[1719735183411,0.853,3395.4,3394.9,2.466]
[1719735189903,2.26221798,3395.4,3394.9,2.466]
[1719735190096,1.40921798,3395.3,3394.9,2.466]
[1719735190308,1.40921798,3395.2,3394.9,2.466]
[1719735190594,1.40921798,3395.1,3395.0,0.27650055]
[1719735190815,0.853,3395.4,3395.0,0.27650055]
[1719735191985,2.26221798,3395.4,3395.0,0.27650055]
[1719735192187,1.40918988,3395.3,3395.0,0.27650055]
[1719735192522,1.40918988,3395.2,3395.0,0.27650055]
[1719735192827,0.853,3395.4,3395.1,0.30415061]
[1719735202665,2.26119597,3395.4,3395.1,0.30415061]
[1719735202837,1.40819597,3395.3,3395.1,0.30415061]
[1719735203065,1.40819597,3395.2,3395.1,0.30415061]
[1719735203682,0.853,3395.4,3395.1,0.30415061]
[1719735206717,2.26144653,3395.4,3395.1,0.30415061]
[1719735206903,1.40844653,3395.3,3395.1,0.30415061]
[1719735207199,1.40844653,3395.2,3395.1,0.30415061]
[1719735207558,0.853,3395.4,3395.1,0.30415061]
[1719735209557,2.26197306,3395.4,3395.1,0.30415061]
[1719735209925,3.1404,3395.2,3394.4,2.4448]
[1719735210074,3.1404,3395.2,3392.9,1.36915841]
[1719735210075,0.853,3394.5,3394.0,2.4448]
[1719735210395,2.2874,3394.9,3393.9,0.28908187]
[1719735210396,0.853,3394.1,3393.9,0.28908187]
[1719735210579,0.853,3394.1,3394.0,0.27338819]
[1719735211516,0.853,3394.3,3394.0,0.27338819]
[1719735211798,1.40916221,3394.8,3393.8,2.4448]
[1719735211958,0.853,3394.4,3393.8,2.4448]
[1719735212311,0.853,3394.4,3393.8,2.98928]
[1719735212810,2.26216221,3394.4,3393.8,2.98928]
[1719735213008,1.40916221,3394.3,3393.8,2.98928]
[1719735213152,1.40916221,3394.2,3393.8,2.98928]
[1719735213355,1.40916221,3394.1,3393.8,2.98928]
[1719735213587,1.40916221,3394.0,3393.9,0.30482066]
[1719735213785,0.853,3394.4,3393.9,0.30482066]
[1719735214103,2.26216221,3394.7,3393.9,0.30482066]
[1719735214307,1.40897202,3394.6,3394.0,0.32941007]
[1719735214512,1.40897202,3394.5,3394.0,0.32941007]
[1719735214802,1.40897202,3394.4,3394.0,0.32941007]
[1719735215018,1.40897202,3394.3,3394.0,0.32941007]
[1719735215224,1.40897202,3394.2,3394.0,0.32941007]
[1719735215363,1.40897202,3394.1,3394.0,0.32941007]
[1719735215563,1.40897202,3394.1,3393.9,0.30482066]
[1719735215812,1.40897202,3394.0,3393.9,0.30482066]
[1719735216306,1.40897202,3394.6,3393.9,1.70782066]
[1719735216519,1.40897202,3394.6,3394.0,1.07863161]
[1719735217365,6.44872194,3394.7,3394.0,1.07863161]
[1719735217581,1.4092197,3394.6,3394.0,1.07863161]
[1719735220665,1.40947108,3394.5,3394.0,1.07863161]
[1719735220868,6.44872194,3394.7,3394.0,1.07863161]
[1719735220869,0.21495301,3394.4,3394.3,0.853]
[1719735221097,6.44872194,3394.7,3394.4,2.3354]
[1719735221268,6.44872194,3394.7,3394.5,0.31884]
[1719735221472,0.01523238,3395.0,3394.5,0.31884]
[1719735222166,0.86823238,3395.0,3394.4,2.3354]
[1719735222360,0.86823238,3395.0,3394.1,2.3354]
[1719735222564,0.86823238,3395.0,3394.2,0.55]
[1719735222765,0.86823238,3395.0,3394.2,0.95432207]
[1719735223600,0.86823238,3395.0,3394.1,2.3354]
[1719735223601,0.853,3394.8,3394.1,2.3354]
[1719735223763,0.853,3394.5,3393.8,2.63332051]
[1719735223964,0.853,3394.5,3393.8,2.89873205]
[1719735224382,0.853,3394.3,3393.8,2.89873205]
[1719735224977,2.4529,3394.7,3393.8,2.89873205]
[1719735225213,0.853,3394.5,3393.8,2.89873205]
[1719735225414,0.853,3394.5,3393.9,0.28987321]
[1719735226819,2.4529,3394.7,3393.9,0.28987321]
[1719735226820,3.3059,3394.7,3393.9,0.28987321]
[1719735228015,0.853,3394.7,3393.9,0.28987321]
[1719735230514,0.853,3394.7,3394.0,2.2984]
[1719735230712,0.853,3394.9,3394.2,2.2984]
[1719735230883,0.01523238,3395.0,3394.2,2.2984]
[1719735232665,0.01523238,3395.0,3394.5,0.853]
[1719735232886,6.44872194,3395.6,3394.6,2.67443207]
[1719735233216,6.44872194,3395.6,3394.7,0.55]
[1719735233217,0.853,3395.6,3394.7,0.55]
[1719735234827,3.0,3395.8,3394.7,0.55]
[1719735235118,0.853,3395.6,3394.8,0.37014]
[1719735236571,1.73443668,3395.6,3394.8,0.37014]
[1719735236804,0.88143668,3395.5,3394.8,0.37014]
[1719735237613,0.853,3395.6,3394.8,0.37014]
[1719735237817,0.853,3395.4,3394.8,0.37014]
[1719735238025,0.853,3395.4,3394.7,0.55]
[1719735238169,0.853,3395.4,3394.6,2.2984]
[1719735238370,0.853,3395.2,3394.6,2.2984]
[1719735239986,1.73467207,3395.2,3394.6,2.2984]
[1719735240193,0.88167207,3395.1,3394.6,2.2984]
[1719735240625,0.853,3395.2,3394.6,2.2984]
[1719735242297,0.853,3395.0,3394.6,2.2984]
[1719735242485,0.853,3394.8,3394.6,2.2984]
[1719735243696,0.88190946,3395.3,3394.6,2.2984]
[1719735243697,0.853,3395.1,3394.6,2.2984]
[1719735245403,0.853,3394.9,3394.6,2.2984]
[1719735247091,0.853,3394.9,3394.5,0.29494204]
[1719735247314,0.853,3394.9,3394.3,2.2922]
[1719735247521,0.853,3394.9,3394.4,0.77922]
[1719735247732,0.853,3394.7,3394.4,0.22922]
[1719735247950,0.853,3394.7,3394.3,2.2922]
[1719735248087,0.853,3394.5,3394.3,2.2922]
[1719735248347,0.853,3394.5,3393.9,2.2922]
[1719735248584,0.853,3394.3,3394.0,0.2590087]
[1719735248792,0.853,3394.3,3393.9,2.2922]
[1719735249690,0.853,3394.1,3393.9,2.2922]
[1719735250391,0.853,3394.1,3393.9,2.5512087]
[1719735250789,0.853,3394.1,3393.9,0.2590087]
[1719735250992,0.853,3394.1,3393.8,0.29788704]
[1719735251195,0.853,3394.1,3393.6,3.0]
[1719735251494,0.88206691,3394.1,3393.7,0.55]
[1719735251653,0.30527798,3394.8,3393.8,2.2922]
[1719735251654,0.853,3394.5,3393.8,2.2922]
[1719735251946,0.853,3394.5,3393.9,0.59011261]
[1719735253097,0.88206691,3394.7,3394.0,0.05892605]
[1719735253098,0.853,3394.6,3394.0,0.05892605]
[1719735253247,0.853,3394.6,3394.0,0.60892605]
[1719735253452,0.853,3394.6,3394.1,0.34912387]
[1719735254111,0.88206691,3394.7,3394.1,0.34912387]
[1719735254250,0.88201195,3394.7,3394.1,0.34912387]
[1719735254452,0.88201195,3394.7,3394.3,2.2922]
[1719735254705,1.73501195,3395.0,3394.3,2.2922]
[1719735257507,0.88211116,3394.9,3394.3,2.2922]
[1719735257674,1.73511116,3395.0,3394.3,2.2922]
[1719735258016,0.88212699,3394.9,3394.4,0.23511156]
[1719735258172,1.73512699,3395.0,3394.4,0.23511156]
[1719735258513,6.44872194,3395.1,3394.5,0.25273116]
[1719735258514,7.30172194,3395.1,3394.5,0.25273116]
[1719735258673,0.88215717,3395.0,3394.5,0.25273116]
[1719735260567,0.853,3395.1,3394.5,0.25273116]
[1719735260874,1.73516769,3395.1,3394.5,0.25273116]
[1719735261182,0.88216769,3395.0,3394.5,0.25273116]
[1719735261569,1.18753725,3395.3,3394.5,0.25273116]
[1719735261769,0.853,3395.1,3394.5,0.25273116]
[1719735263067,0.853,3395.1,3394.6,2.2756]
[1719735263268,0.853,3395.1,3394.6,2.52843312]
[1719735268122,0.853,3395.1,3394.6,2.52843312]
[1719735268805,0.853,3394.9,3394.6,2.52843312]
[1719735269022,0.853,3394.9,3394.6,2.2756]
[1719735270794,1.7349776,3394.9,3394.6,2.2756]
[1719735271000,0.8819776,3394.8,3394.6,2.2756]
[1719735271413,0.853,3394.9,3394.6,2.2756]
[1719735272111,1.7349776,3394.9,3394.6,2.2756]
[1719735272428,0.8819776,3394.8,3394.6,2.2756]
[1719735272628,0.853,3394.9,3394.6,2.2756]
[1719735276990,1.7350721,3394.9,3394.6,2.2756]
[1719735277222,0.8820721,3394.8,3394.6,2.2756]
[1719735277533,0.853,3394.9,3394.6,2.2756]
[1719735280227,0.853,3394.9,3394.3,2.5699896]
[1719735280542,0.853,3394.9,3394.3,2.88198856]
[1719735284243,0.88206037,3395.2,3394.3,2.88198856]
[1719735284404,0.853,3394.9,3394.3,2.88198856]
[1719735284604,0.853,3394.9,3394.3,2.5699896]
[1719735289909,1.73487042,3394.9,3394.3,2.5699896]
[1719735290124,0.88187042,3394.8,3394.3,2.5699896]
[1719735290348,0.853,3394.9,3394.3,2.5699896]
[1719735294253,0.853,3395.1,3394.3,2.5699896]
[1719735294460,0.853,3395.1,3394.4,2.2859]
[1719735295666,0.853,3394.9,3394.4,2.2859]
[1719735296065,1.73499076,3394.9,3394.4,2.2859]
[1719735296273,0.88199076,3394.8,3394.4,2.2859]
[1719735296473,0.853,3394.9,3394.4,2.57571801]
[1719735297847,1.73499076,3395.2,3394.6,2.2859]
[1719735298045,1.73499076,3395.2,3394.5,0.55]
[1719735298046,0.88199076,3395.2,3394.8,2.2859]
[1719735298285,0.88199076,3395.3,3394.8,2.34480924]
[1719735298498,0.88199076,3395.4,3394.8,2.34480924]
[1719735298646,0.88199076,3395.4,3394.9,2.60568092]
[1719735298849,0.88205938,3395.4,3394.9,2.60568092]
[1719735300601,0.88205938,3395.4,3395.1,2.2859]
[1719735301378,0.3397466,3395.4,3395.1,2.2859]
[1719735301755,6.44872194,3395.5,3395.1,2.2859]
[1719735301956,0.3397987,3395.4,3395.1,2.2859]
[1719735302159,0.3397987,3395.6,3395.1,2.2859]
[1719735302473,0.853,3395.7,3395.2,0.23448029]
[1719735302657,0.853,3395.7,3395.1,2.2859]
[1719735303079,0.3397987,3395.8,3395.1,2.2859]
[1719735303716,0.3397987,3395.8,3395.3,2.2747]
[1719735303913,0.3397987,3395.8,3395.4,0.77747]
[1719735304099,0.3397987,3395.8,3395.5,2.2747]
[1719735304482,0.33961032,3395.8,3395.5,2.2747]
[1719735304675,3.86261203,3396.6,3395.5,2.2747]
[1719735304676,3.86261203,3396.6,3395.5,2.33359419]
[1719735304876,1.54941203,3396.6,3395.7,2.2747]
[1719735305120,0.853,3396.4,3395.7,2.84942229]
[1719735305292,0.853,3396.4,3395.8,2.2747]
[1719735305619,0.30523353,3396.6,3395.6,2.2747]
[1719735305775,0.853,3396.5,3395.8,2.2747]
[1719735305981,0.30523353,3396.6,3396.0,2.2747]
[1719735307080,0.853,3396.5,3396.0,2.2747]
[1719735307533,0.30523353,3396.6,3396.1,0.05888743]
[1719735307692,1.45801049,3397.2,3396.1,0.77747]
[1719735307693,0.853,3396.8,3396.1,0.77747]
[1719735307876,0.853,3396.8,3396.0,2.2747]
[1719735308081,0.853,3396.4,3396.0,2.2747]
[1719735309799,2.75558928,3397.1,3396.0,2.2747]
[1719735310114,0.853,3396.5,3396.0,2.2747]
[1719735311150,9.20431122,3397.1,3396.1,0.55]
[1719735311353,6.75401122,3397.1,3396.2,2.3711]
[1719735311557,6.75401122,3397.1,3396.3,0.60887824]
[1719735311558,0.853,3397.0,3396.3,0.60887824]
[1719735311703,0.853,3397.0,3396.3,0.98462306]
[1719735312309,0.30528928,3397.1,3396.3,0.98462306]
[1719735312310,0.30528928,3397.1,3396.4,2.3711]
[1719735312552,0.853,3396.9,3396.5,0.55]
[1719735313851,2.94,3397.3,3396.5,0.55]
[1719735314148,0.853,3396.9,3396.5,0.55]
[1719735315355,0.853,3396.9,3396.6,0.29211]
[1719735315909,2.94,3397.3,3396.6,0.29211]
[1719735316110,2.86335871,3397.3,3396.7,2.3711]
[1719735316355,2.86335871,3397.3,3396.8,0.05887083]
[1719735316506,2.86335871,3397.3,3396.9,2.3711]
[1719735316838,2.86335871,3397.3,3397.0,0.24299708]
[1719735317451,6.44872194,3397.7,3397.0,0.24299708]
[1719735317955,0.853,3397.6,3397.0,0.24299708]
[1719735318611,0.853,3397.6,3397.1,0.05886949]
[1719735319773,0.853,3397.6,3397.0,0.24299708]
[1719735319774,6.44872194,3398.4,3397.2,2.3711]
[1719735319930,3.0,3398.7,3397.3,0.55]
[1719735319931,0.853,3398.1,3397.3,0.55]
[1719735320130,0.853,3397.9,3397.3,0.55]
[1719735321468,0.853,3397.7,3397.2,2.63250971]
[1719735321641,2.2689,3398.2,3397.2,2.63250971]
[1719735321972,0.853,3397.9,3397.2,2.63250971]
[1719735323970,0.853,3397.9,3397.2,2.3711]
[1719735324271,0.853,3397.4,3396.7,2.4658]
[1719735324455,0.853,3397.2,3396.7,3.31238]
[1719735324660,0.853,3397.2,3396.7,2.4658]
[1719735325227,0.853,3397.2,3396.3,3.0]
[1719735325460,0.853,3397.0,3396.3,2.4658]
[1719735326156,0.853,3397.0,3396.3,2.7645994]
[1719735330397,0.853,3397.2,3396.3,2.7645994]
[1719735336199,0.853,3397.0,3396.3,2.7645994]